Cogmind - Beta 14 @@@ ROGUE MODE // 2025.03.29 @ 17:50:18 Player: SirusTheMadDJ Result: Destroyed by H0-W7G(R) with Subdweller Laser Performance ------------- Evolutions (0) 0 Regions Visited (2) 400 Robots Destroyed (30) 150 Value Destroyed (822) 822 Prototype IDs (3) 60 Alien Tech Used (0) 0 Bonus (0) 0 TOTAL SCORE: 1432 Bonus ------- None Cogmind --------- Core Integrity 0/250 Matter 208/300 Energy 100/100 System Corruption 5% Temperature Cool (6) Movement Core (250) Ox4 Location -10/Subcaves Parts ------- > --- POWER (1) -------- (None) > --- PROPULSION (2) --- (None) > --- UTILITY (2) ------ Medium Storage Unit Targeting Computer > --- WEAPON (2) ------- Improved Assault Rifle > --- INVENTORY (10) --- Improved Heat Sink Large Storage Unit Sensor Array Targeting Computer Grenade Launcher Peak State ------------ > --- POWER ------------ Light Nuclear Core > --- PROPULSION ------- Aluminum Leg Aluminum Leg > --- UTILITY ---------- Medium Storage Unit Targeting Computer > --- WEAPON ----------- Improved Assault Rifle Improved Assault Rifle > --- INVENTORY -------- Heavy Ion Engine Aluminum Leg Aluminum Leg Improved Flight Unit Improved Flight Unit Improved Heat Sink Large Storage Unit Targeting Computer Improved Assault Rifle Grenade Launcher [Rating: 15] Favorites ----------- Power Heavy Ion Engine Engine Heavy Ion Engine Power Core Light Nuclear Core Propulsion Aluminum Leg Leg Aluminum Leg Flight Unit Improved Flight Unit Utility Medium Storage Unit Device Tractor Beam Storage Medium Storage Unit Processor Targeting Computer Weapon Improved Assault Rifle Energy Gun Riot Gun Ballistic Gun Improved Assault Rifle Ballistic Cannon Battle Cannon Build | -11 -10 -10 ------- Run | Yrd Mat Sub Slots Evolved . | . . . Power . | . . . Propulsion . | . . . Utility . | . . . Weapon . | . . . Parts Attached 37 | 7 18 12 Power 5 | 1 3 1 Engine 3 | 1 1 1 Core 2 | . 2 . Reactor . | . . . Propulsion 11 | 2 7 2 Treads . | . . . Leg 8 | 2 4 2 Wheel . | . . . Hover . | . . . Flight 3 | . 3 . Utility 6 | 2 4 . Device 1 | 1 . . Storage 4 | 1 3 . Processor 1 | . 1 . Hackware . | . . . Protection . | . . . Artifact . | . . . Weapon 15 | 2 4 9 Energy Gun 5 | 2 1 2 Energy Cannon . | . . . Ballistic Gun 7 | . 3 4 Ballistic Cannon 3 | . . 3 Launcher . | . . . Special Weapon . | . . . Impact Weapon . | . . . Slashing Weapon . | . . . Piercing Weapon . | . . . Special Melee Weapon . | . . . Unidentified Prototypes 3 | . 3 . Parts Lost 11 | . 1 10 Power 2 | . . 2 Propulsion 4 | . . 4 Utility . | . . . Weapon 5 | . 1 4 Highest Loss Streak 3 | . 1 3 To Critical Strikes . | . . . Average Slot Usage (%) 95 | . 100 92 Engine 8 | . 4 10 Core 5 | . 9 2 Leg 23 | . 27 20 Storage 14 | . 14 14 Processor 13 | . 12 14 Energy Gun 7 | . 8 6 Ballistic Gun 14 | . 19 11 Ballistic Cannon 5 | . . 9 Peak Build Rating 15 | 7 15 14 Average Rating 11 | 4 11 12 On Entrance 7 | . 7 14 Naked Turns . | . . . Heaviest Build 24 | 15 24 24 Greatest Support 20 | 20 20 20 Greatest Overweight (x) 3 | . 3 2 Average Overweight (x) . | . . 1 Largest Inventory Capacity 15 | 8 15 10 Average Capacity 9 | 7 9 10 Most Carried 10 | 2 10 10 Average Carried 6 | . 7 6 Final Capacity 10 | 8 10 10 Final Carried 8 | 2 8 5 Class Distribution -------------------- 100% | Mutant Dominant Class ---------------- Mutant | -10/Materials Mutant | -10/Subcaves Resources | -11 -10 -10 ----------- Run | Yrd Mat Sub Matter Collected 1106 | 270 496 340 Remotely 32 | 32 . . Salvage Created 1040 | 91 701 248 Parts 58 | 2 39 17 Haulers Intercepted 1 | . 1 . Recyclers Shooed 2 | . 2 . Parts Field Recycled . | . . . Retrieved Matter . | . . . Parts Self-Destructed 7 | . . 7 Prevented . | . . . Kills | -11 -10 -10 ------- Run | Yrd Mat Sub Combat Hostiles Destroyed 20 | . 13 7 Guns 16 | . 12 4 Cannons 3 | . . 3 AOE 1 | . 1 . Classes Destroyed 10 | 1 7 2 Worker 1 | . 1 . Hauler 1 | . 1 . Recycler 2 | 1 1 . Operator 1 | . 1 . Turret 2 | . . 2 Watcher 3 | . 3 . Swarmer 4 | . 3 1 Grunt 8 | . 8 . Sentry 1 | . . 1 Subdweller 7 | . 2 5 Best Kill Streak 3 | 1 3 2 Combat Bots Only 3 | . 3 1 Max Kills in Single Turn 1 | 1 1 1 Gunslinging . | . . . Exploded 1 | . 1 . Melee . | . . . Uniques/NPCs Destroyed . | . . . Combat | -11 -10 -10 -------- Run | Yrd Mat Sub Hostile Shots Fired 201 | . 71 130 Missed 76 | . 25 51 Damage Taken 1691 | . 572 1119 Core 263 | . 56 207 Absorbed by Shields . | . . . Core Remaining (%) 100 | 100 . . Volleys Fired 119 | 3 60 56 Largest 2 | 2 2 2 Hottest 100 | 90 100 89 Shots Fired 212 | 6 121 85 Gun 192 | 6 121 65 Cannon 20 | . . 20 Launcher . | . . . Special . | . . . Kinetic 177 | . 96 81 Thermal 19 | 3 16 . Explosive . | . . . Electromagnetic 16 | 3 9 4 Robot Hit Streak 16 | 1 9 16 Robot Miss Streak 4 | 2 4 4 Penetration Max . | . . . Secondary Targets 1 | . 1 . Max Gunslinging Chain 1 | . 1 . Shots Hit Robots 152 | 3 77 72 Core Hits 49 | 2 31 16 Critical Kills . | . . . Critical Parts Destroyed 1 | . 1 . Critical Strikes 2 | . 2 . Burn 1 | . 1 . Destroy 1 | . 1 . Melee Attacks . | . . . Impact . | . . . Slashing . | . . . Piercing . | . . . Sneak Attacks . | . . . Combat Hostiles . | . . . Follow-up Attacks . | . . . Damage Inflicted 1942 | 37 1188 717 Guns 1554 | 37 1134 383 Cannons 334 | . . 334 Explosions 36 | . 36 . Melee . | . . . Ramming 18 | . 18 . Kinetic 1597 | . 912 685 Thermal 200 | 25 175 . Explosive . | . . . Electromagnetic 127 | 12 83 32 Impact . | . . . Slashing . | . . . Piercing . | . . . Highest Corruption 5 | . 5 5 Average Corruption 4 | . 4 5 Corruption Purged . | . . . Corruption Blocked . | . . . Effects 78 | . 28 50 Message Errors 18 | . 5 13 Matter Fused 16 | . 6 10 Heat Flow Errors 5 | . 1 4 Energy Discharges 7 | . 2 5 Parts Rejected 2 | . . 2 Parts Fused 3 | . 3 . Data Loss (minor) 10 | . 6 4 Data Loss (major) 4 | . . 4 Misfires 3 | . 3 . Alerts 5 | . 1 4 Weapon Failures 5 | . 1 4 Overload Shots . | . . . Overflow Damage . | . . . Projectiles . | . . . Explosions . | . . . Melee . | . . . Knockbacks 2 | . . 2 Impact . | . . . Kinetic 2 | . . 2 Secondary . | . . . Self-Inflicted Damage . | . . . Shots . | . . . Rammed . | . . . Targets Rammed 3 | . 3 . Kicked 3 | . 3 . Crushed . | . . . Highest Temperature 211 | 90 211 139 Average Temperature 42 | 48 41 46 Received Heat Transfer 459 | . 186 273 Siege Activations . | . . . Robots Corrupted . | . . . Combat Hostiles . | . . . Parts Fried 1 | . 1 . Impact Corruptions . | . . . Robots Melted . | . . . Combat Hostiles . | . . . Parts Melted 2 | . 2 . Heat Transferred 555 | 74 481 . Parts Sabotaged . | . . . Parts Stolen . | . . . Parts Stripped . | . . . Power Chain Reactions 1 | . 1 . Alert | -11 -10 -10 ------- Run | Yrd Mat Sub Peak Influence 214 | 5 214 . Initial 3 | . 3 . Average 99 | 1 106 . Maximum Alert Level 1 | . 1 . Low Security (%) 99 | 100 99 . Level 1 . | . . . Level 2 . | . . . Level 3 . | . . . Level 4 . | . . . Level 5 . | . . . High Security . | . . . Max Security . | . . . Squads Dispatched 3 | . 3 . Investigation 2 | . 2 . Extermination . | . . . Reinforcement 1 | . 1 . Assault . | . . . Garrison . | . . . Intercept . | . . . Searches Triggered . | . . . Construction Impeded . | . . . Haulers Reinforced . | . . . Active Scanning Responses . | . . . Cargo Convoy Interrupts . | . . . Stealth | -11 -10 -10 --------- Run | Yrd Mat Sub Distress Signals 1 | . 1 . Communications Jammed . | . . . Distress Signals . | . . . Times Spotted 39 | . 23 16 Peak Tracking Total 6 | . 4 6 Tactical Retreats 3 | . 1 2 Traps | -11 -10 -10 ------- Run | Yrd Mat Sub Traps Triggered 5 | . 2 3 Indirectly . | . . . Trap Hack Attempts . | . . . Triggered . | . . . Disarmed . | . . . Reprogrammed . | . . . Reused . | . . . Traps Extracted . | . . . Installed . | . . . Triggered . | . . . Machines | -11 -10 -10 ---------- Run | Yrd Mat Sub Machines Disabled 3 | . 2 1 Max in Single Turn 1 | . 1 1 Machines Repaired . | . . . Machines Dismantled . | . . . Machines Sabotaged . | . . . Overloaded Fab Kills . | . . . Hacking | -11 -10 -10 --------- Run | Yrd Mat Sub Machines Accessed 3 | . 3 . Terminals 2 | . 2 . Fabricators . | . . . Repair Stations . | . . . Recycling Units 1 | . 1 . Scanalyzers . | . . . Garrison Access . | . . . Total Hacks 9 | . 9 . Successful 1 | . 1 . Failed 8 | . 8 . Catastrophic 2 | . 2 . Database Lockouts . | . . . Manual 5 | . 5 . Terminals 7 | . 7 . Fabricators . | . . . Repair Stations . | . . . Recycling Units 2 | . 2 . Scanalyzers . | . . . Garrison Access . | . . . Terminal Hacks . | . . . Fabricator Hacks . | . . . Repair Station Hacks . | . . . Recycling Unit Hacks 1 | . 1 . Report Inventory 1 | . 1 . Scanalyzer . | . . . Garrison Access Hacks . | . . . Unauthorized Hacks . | . . . Terminals . | . . . Fabricators . | . . . Repair Stations . | . . . Recycling Units . | . . . Scanalyzers . | . . . Garrison Access . | . . . Data Cores Recovered . | . . . Used . | . . . Hacking Detections 3 | . 3 . Full Trace Events 1 | . 1 . Feedback Events . | . . . Feedback Blocked . | . . . Robot Schematics Acquired . | . . . Robots Built . | . . . Authchips . | . . . Time . | . . . Total Robot Build Rating . | . . . Part Schematics Acquired . | . . . Parts Built . | . . . Authchips . | . . . Time . | . . . Total Part Build Rating . | . . . Parts Repaired . | . . . Time . | . . . Parts Recycled . | . . . Recycled Matter . | . . . Retrieved Matter . | . . . Retrieved Components . | . . . Parts Scanalyzed . | . . . Part Schematics Acquired . | . . . Parts Damaged . | . . . Bothacking | -11 -10 -10 ------------ Run | Yrd Mat Sub Used RIF Installer . | . . . Robots Hacked . | . . . Non-combat . | . . . Combat . | . . . Robot Hacks Applied . | . . . Relay Couplers Released . | . . . Fabnet Peak Effective % . | . . . Robots Rewired . | . . . Allies Hacked . | . . . Hacks Repelled . | . . . Allies | -11 -10 -10 -------- Run | Yrd Mat Sub Total Allies . | . . . Largest Group . | . . . Highest-Rated Group . | . . . Highest-Rated Ally . | . . . Total Orders . | . . . Ally Attacks . | . . . Total Damage . | . . . Kills . | . . . Allies Corrupted . | . . . Allies Melted . | . . . Intel | -11 -10 -10 ------- Run | Yrd Mat Sub Robot Analysis Total . | . . . Derelict Logs Recovered . | . . . Drone Launches . | . . . Drone Recoveries . | . . . Exploration | -11 -10 -10 ------------- Run | Yrd Mat Sub Turns Passed 3294 | 84 1211 1999 Spaces Moved 1512 | 56 597 859 Core 6 | 6 . . Treads . | . . . Legs 1502 | 50 593 859 Wheels . | . . . Hover . | . . . Flight 4 | . 4 . Fastest Speed 50 | 50 107 120 Average Speed 188 | 112 163 210 Slowest Speed 260 | 120 260 260 Overloaded Moves . | . . . Propulsion Burnouts . | . . . Robots Hopped . | . . . Cave-ins Triggered . | . . . Exploration Rate (%) 45 | 4 73 60 Regions Visited 2 Branch Regions 1 Pre-discovered Areas 1 | . . 1 Known Exits Taken . | . . . Unknown Exits Taken 2 | 1 1 . Scrap Searched . | . . . Spaces Dug . | . . . Terrain Destroyed 2 | . 2 . Melee . | . . . Projectile . | . . . AOE 2 | . 2 . Terrain Rammed . | . . . Walls Destroyed . | . . . Machines Disabled . | . . . Actions | -11 -10 -10 --------- Run | Yrd Mat Sub Total 1736 | 67 708 961 Wait 42 | . 12 30 Move 1510 | 55 596 859 Hop . | . . . Pick Up 18 | 2 12 4 Fast Attach 8 | 7 . 1 Attach 8 | . 1 7 Detach . | . . . Swap 21 | . 17 4 Drop 7 | . 7 . Fire 119 | 3 60 56 Melee . | . . . Ram . | . . . Kick 3 | . 3 . Crush . | . . . Escape Stasis . | . . . Rewire . | . . . Trap . | . . . Miscellaneous . | . . . Route ------- -11/Scrapyard -10/Materials (discovered 3 exits: [*Mat x2] / [*Sub]) -10/Subcaves (discovered 2 exits: [*Mat] / [*Rec]) History --------- Turn | Location | Event 2 | -11/Scrapyard | Discovered new exit (range 16) 85 | -11/Scrapyard | Entered Materials 312 | -10/Materials | Build established: Mutant 403 | -10/Materials | Discovered new exit (range 13) 992 | -10/Materials | Discovered new exit (range 8) 1085 | -10/Materials | Derelicts attacked the area 1281 | -10/Materials | Discovered new exit (range 10) 1296 | -10/Materials | Entered Subcaves 1334 | -10/Subcaves | Shifting Twisted Machinery released Sub. Beam Cannon 1343 | -10/Subcaves | Shifting Twisted Machinery released Battle Cannon 1435 | -10/Subcaves | A swath of the cavern ceiling suddenly collapsed 1481 | -10/Subcaves | A swath of the cavern ceiling suddenly collapsed 1728 | -10/Subcaves | Discovered new exit (range 15) 1737 | -10/Subcaves | Lost 3 parts (1p2n) 1832 | -10/Subcaves | Learned location of Zion (-6) 1832 | -10/Subcaves | Met a Zionite searching for "candidates" 2975 | -10/Subcaves | Core integrity fell below 50% 3107 | -10/Subcaves | Discovered new exit (range 6) 3280 | -10/Subcaves | Core integrity fell below 20% 3295 | -10/Subcaves | Destroyed by H0-W7G(R) with Subdweller Laser Last Messages --------------- G1-HL0(R) destroyed. Acquired 15 matter. >EP HF#42 R#LTAWC ITNNPQCXOJOC>3H Subatomizers dissect the Disposable Heat Sink. 0R04#5W2GUWOZLNE1OKW>X:CIHFF#NR System corrupted: Substantial component data lost. System corrupted: Matter fused (-9). System corrupted: Matter fused (-6). EXIT=FOUND X6QR|MD3PXUEZJFGALXJJ|E